bitfinex/quotes_ETHUSD_20220213
["timestamp","ask_amount","ask_price","bid_price","bid_amount"]
[1644783186006,0.01132276,2873.5,2873.3,0.9740963]
[1644783186604,1.10607979,2873.6,2873.3,0.9740963]
[1644783187008,0.01132269,2873.5,2873.3,0.9740963]
[1644783187753,1.10607979,2873.6,2873.3,0.9740963]
[1644783188150,0.00743145,2873.5,2873.3,0.9740963]
[1644783188950,1.10607979,2873.6,2873.3,0.9740963]
[1644783189150,0.93217979,2873.6,2873.3,0.9740963]
[1644783189350,0.01132533,2873.5,2873.3,0.9740963]
[1644783190252,0.06169979,2873.6,2873.3,0.9740963]
[1644783190452,0.01132533,2873.5,2873.3,0.9740963]
[1644783190653,0.01132533,2873.5,2873.3,0.4740963]
[1644783190853,0.01132533,2873.5,2873.3,0.9740963]
[1644783191502,0.06169979,2873.6,2873.3,0.9740963]
[1644783191698,0.01132533,2873.5,2873.3,0.9740963]
[1644783192700,0.06169979,2873.6,2873.3,0.9740963]
[1644783192903,0.01132533,2873.5,2873.3,0.9740963]
[1644783193902,0.06169979,2873.6,2873.3,0.9740963]
[1644783194103,0.01132533,2873.5,2873.3,0.9740963]
[1644783195048,0.06569527,2873.6,2873.3,0.9740963]
[1644783195049,0.0270206,2873.6,2873.3,0.9740963]
[1644783195249,0.01132533,2873.5,2873.3,0.9740963]
[1644783196252,0.0270206,2873.6,2873.3,0.9740963]
[1644783197653,0.03834566,2873.6,2873.3,0.98542289]
[1644783198719,0.0270206,2873.6,2873.3,0.9740963]
[1644783199007,0.03834566,2873.6,2873.3,0.98542289]
[1644783199608,0.87049,2873.5,2873.3,0.18542289]
[1644783199809,0.87049,2873.5,2872.4,2.4371352]
[1644783199810,0.87049,2873.5,2873.4,0.5]
[1644783200011,0.87448548,2873.5,2873.4,0.5]
[1644783200209,1.04449,2873.5,2873.4,0.5]
[1644783201106,3.48267,2873.7,2873.4,0.5]
[1644783201107,2.2953606,2873.7,2873.4,0.5]
[1644783201308,0.174,2873.5,2873.4,0.5]
[1644783201506,0.502,2873.5,2873.4,0.8]
[1644783202106,3.78755045,2873.5,2873.4,0.8]
[1644783202557,0.6759,2873.5,2873.4,0.8]
[1644783202951,1.54639,2873.5,2873.4,0.8]
[1644783204653,4.82735026,2873.5,2873.4,0.8]
[1644783205158,1.54639,2873.5,2873.4,0.8]
[1644783205354,4.81890146,2873.5,2873.4,0.7]
[1644783205563,5.81890146,2873.5,2873.4,0.7]
[1644783205754,4.81890146,2873.5,2873.4,0.7]
[1644783205954,1.54639,2873.5,2873.4,0.7]
[1644783207409,10.14473437,2873.5,2873.4,0.7]
[1644783207712,11.14473437,2873.5,2873.4,0.7]
[1644783207909,5.84473437,2873.5,2873.4,0.4]
[1644783208510,5.84473437,2873.5,2873.3,0.01132659]
[1644783208712,4.65,2873.3,2872.4,0.3483112]
[1644783208910,5.17598001,2873.2,2873.1,0.5]
[1644783209111,4.30105063,2873.2,2873.1,0.5]
[1644783209311,4.30105063,2873.2,2873.1,0.8]
[1644783209710,5.30105063,2873.2,2873.1,0.8]
[1644783210258,0.502,2873.2,2873.1,0.8]
[1644783211252,4.83412877,2873.2,2873.1,0.8]
[1644783211453,1.502,2873.2,2873.1,0.8]
[1644783213053,1.6759,2873.2,2873.1,0.8]
[1644783214101,0.502,2873.2,2873.1,0.8]
[1644783214301,1.502,2873.2,2873.1,0.8]
[1644783214702,0.502,2873.2,2873.1,0.8]
[1644783215202,3.76440583,2873.2,2873.1,0.8]
[1644783215410,0.502,2873.2,2873.1,0.8]
[1644783215804,4.89078614,2873.2,2873.1,0.8]
[1644783216704,1.502,2873.2,2873.1,0.8]
[1644783216904,4.77011357,2873.2,2873.1,0.8]
[1644783217107,9.94401357,2873.2,2873.0,2.841e-05]
[1644783217305,9.94401357,2873.2,2871.4,1.4169]
[1644783217306,5.52111,2873.0,2871.4,1.4169]
[1644783217554,1.74238,2872.7,2871.4,4.5898]
[1644783217752,4.34070967,2872.6,2871.4,4.5898]
[1644783217953,9.34070967,2872.6,2872.4,0.5]
[1644783218152,9.34070967,2872.6,2871.4,4.5898]
[1644783218349,2.10490325,2872.5,2871.4,4.5898]
[1644783218550,0.87118,2872.3,2871.4,4.5898]
[1644783218750,0.87118,2872.3,2872.2,0.5]
[1644783218949,1.37318,2872.3,2872.2,0.5]
[1644783219150,1.37318,2872.3,2872.2,0.8]
[1644783219151,4.63174164,2872.3,2872.2,0.8]
[1644783219351,3.76056164,2872.3,2872.2,0.8]
[1644783220054,7.37400164,2872.3,2871.1,0.1739]
[1644783220253,7.37400164,2872.3,2870.9,3.0718]
[1644783220254,1.74267,2871.9,2870.9,3.0718]
[1644783220454,4.25401252,2871.8,2870.8,0.98253089]
[1644783221051,5.12535252,2871.8,2870.8,0.98253089]
[1644783221318,0.87133,2871.6,2870.8,1.28253089]
[1644783221513,2.24456,2871.5,2871.0,0.1742556]
[1644783221714,2.24456,2871.5,2871.2,0.01133091]
[1644783222114,2.24456,2871.5,2871.3,0.5]
[1644783222517,0.87128,2871.4,2871.3,0.5]
[1644783222714,1.37328,2871.4,2871.3,0.5]
[1644783223017,0.87128,2871.4,2871.3,0.51133078]
[1644783223217,0.87128,2871.4,2871.3,0.81133078]
[1644783223813,0.87128,2871.4,2871.3,0.8]
[1644783224816,3.3216129,2871.4,2871.3,0.5]
[1644783225061,3.8236129,2871.4,2871.3,0.5]
[1644783226063,4.8236129,2871.4,2871.3,0.8]
[1644783226261,4.8236129,2871.4,2871.3,0.5]
[1644783226461,4.8236129,2871.4,2869.5,5.7492]
[1644783226462,0.87148,2871.0,2870.4,0.1742951]
[1644783226663,4.77493457,2870.9,2870.4,0.1742951]
[1644783227064,1.37348,2870.9,2870.4,0.1742951]
[1644783227563,0.87148,2870.8,2870.4,0.1742951]
[1644783227763,0.87148,2870.8,2870.7,0.5]
[1644783227965,0.502,2870.8,2870.7,0.5]
[1644783228168,6.502,2870.8,2870.7,0.5]
[1644783228365,1.64019997,2870.8,2869.9,0.04533623]
[1644783228566,0.87172,2870.6,2869.9,0.04533623]
[1644783228808,0.87172,2870.6,2870.4,0.5]
[1644783228809,0.6761,2870.5,2870.4,0.5]
[1644783229109,2.4195,2870.5,2870.4,0.5]
[1644783229310,5.70616281,2870.5,2870.4,0.5]
[1644783229709,5.70616281,2870.5,2870.4,0.8]
[1644783230309,5.70616281,2870.5,2870.3,0.01133206]
[1644783230512,3.34983108,2870.4,2870.3,0.01133206]
[1644783230715,3.85183108,2870.4,2870.3,0.01133206]
[1644783230911,3.0,2870.3,2870.2,0.5]
[1644783231113,8.55366626,2870.3,2870.2,0.5]
[1644783231310,5.24557,2870.3,2870.2,0.5113322]
[1644783231511,2.24557,2870.3,2870.2,0.5113322]
[1644783231912,5.6590185,2870.3,2870.2,0.5113322]
[1644783232115,5.6590185,2870.3,2869.6,0.04533776]
[1644783232116,4.65,2870.2,2869.6,0.04533776]
[1644783232313,0.87183,2869.9,2869.3,0.00263758]
[1644783232560,3.8180828,2869.8,2869.1,0.00263758]
[1644783232755,0.502,2869.8,2869.1,0.00263758]
[1644783233154,0.502,2869.8,2869.1,0.35134198]
[1644783233360,1.74361,2869.7,2869.3,0.174357]
[1644783233555,0.502,2869.6,2869.4,0.00263758]
[1644783233755,0.502,2869.6,2869.3,0.124357]
[1644783234855,0.8717,2869.5,2869.3,0.13569573]
[1644783235259,0.8717,2869.5,2869.3,0.43569573]
[1644783235856,0.8717,2869.5,2869.3,0.424357]
[1644783239705,0.8717,2869.5,2869.3,0.4356929]
[1644783240350,0.8717,2869.5,2869.3,0.3113359]
[1644783240750,0.8717,2869.5,2869.3,0.3]
[1644783240950,0.8717,2869.5,2869.3,0.30387074]
[1644783241151,0.8717,2869.5,2869.3,0.00387074]
[1644783241955,0.8717,2869.5,2869.0,0.08982398]
[1644783241956,5.08006846,2869.5,2869.0,0.08982398]
[1644783242157,2.61535,2869.5,2869.3,0.50387074]
[1644783243155,2.61535,2869.5,2869.3,0.8]
[1644783243357,2.61535,2869.5,2869.3,0.81134122]
[1644783243557,1.74352,2869.5,2869.3,0.81134122]
[1644783244400,1.74352,2869.5,2869.3,0.8]
[1644783244600,1.74352,2869.5,2869.3,0.81134122]
[1644783245401,1.74352,2869.5,2869.3,0.8]
[1644783245801,1.74352,2869.5,2869.3,0.81134122]
[1644783246606,1.74352,2869.5,2869.3,0.8]
[1644783247005,1.74352,2869.5,2869.3,0.81134122]
[1644783247849,1.74352,2869.5,2869.3,0.8]
[1644783247850,0.8717,2869.5,2869.3,0.8]
[1644783248053,0.8717,2869.5,2869.3,0.8871697]
[1644783248251,0.8717,2869.5,2869.3,0.89851092]
[1644783248852,1.7433,2869.9,2869.5,1.58269043]
[1644783249054,0.87161,2870.1,2869.5,1.88269043]
[1644783249257,0.1741,2870.6,2869.5,2.26984853]
[1644783249454,5.285,2871.1,2869.7,0.2614132]
[1644783249455,0.01133672,2870.4,2869.7,0.2614132]
[1644783249656,0.01133672,2870.4,2869.8,2.09051593]
[1644783249859,0.01133672,2870.4,2870.2,0.5]
[1644783250053,0.01133672,2870.4,2870.3,0.3]
[1644783250253,0.25,2871.2,2870.3,0.3]
[1644783250453,0.1741,2871.3,2870.4,0.2613469]
[1644783250653,0.1741,2871.3,2871.1,0.5]
[1644783251052,0.1741,2871.3,2871.2,0.3]
[1644783251306,1.58441,2871.4,2871.2,0.3]
[1644783251909,1.59574759,2871.4,2871.2,0.3]
[1644783252706,0.87111,2871.4,2871.2,0.3]
[1644783252907,0.88244752,2871.4,2871.2,0.8]
[1644783253909,0.87105,2871.6,2871.2,0.8]
[1644783254109,1.91625,2871.8,2871.3,0.0871018]
[1644783254311,0.01133752,2871.4,2871.3,0.0871018]
[1644783254951,0.01133752,2871.4,2871.2,0.9742035]
[1644783255252,0.1741,2871.8,2871.2,0.9742035]
[1644783255454,3.34498031,2872.3,2871.2,0.9742035]
[1644783255455,0.01133746,2871.5,2871.2,0.9742035]
[1644783256350,0.87102,2871.7,2871.2,0.9742035]
[1644783256552,0.01133746,2871.5,2871.2,0.9742035]
[1644783257551,0.87105,2871.6,2871.3,0.5]
[1644783257751,0.01133746,2871.5,2871.4,0.3]
[1644783258802,0.87105,2871.6,2871.4,0.3]
[1644783259002,0.88238732,2871.6,2871.4,0.3871072]
[1644783259403,0.01133732,2871.6,2871.4,0.8871072]
[1644783260003,0.1741,2872.3,2871.4,0.8871072]
[1644783260204,0.01133726,2871.6,2871.4,0.8871072]
[1644783260404,0.01133726,2871.6,2871.4,0.3871072]
[1644783260606,0.01133726,2871.6,2871.4,0.8871072]
[1644783261105,1.74191,2872.2,2871.4,0.8871072]
[1644783261306,0.01133726,2871.6,2871.4,0.8871072]
[1644783262307,1.74191,2872.2,2871.4,0.3871072]
[1644783262559,0.01133726,2871.6,2871.4,0.8871072]
[1644783263457,1.74207,2871.9,2871.4,0.8871072]
[1644783263658,0.87098,2871.8,2871.7,0.86765087]
[1644783263858,0.87098,2871.8,2871.7,0.95474757]
[1644783264866,0.87098,2871.8,2871.4,0.79858255]
[1644783265060,0.87098,2871.8,2871.7,0.5]
[1644783265559,0.87098,2871.8,2871.7,0.8]
[1644783265760,1.92748692,2871.9,2871.7,0.8]
[1644783266059,1.91615,2871.9,2871.7,0.8]
[1644783266315,1.92748692,2871.9,2871.7,0.8]
[1644783266908,4.54098692,2871.9,2871.7,0.8]
[1644783267110,4.52965,2871.9,2871.7,0.8]
[1644783267308,4.54098685,2871.9,2871.7,0.8]
[1644783268313,4.52965,2871.9,2871.7,0.8]
[1644783268710,2.79865685,2871.9,2871.7,0.3]
[1644783268913,0.01133685,2871.9,2871.7,0.3871075]
[1644783269211,0.01133685,2871.9,2871.7,0.8871075]
[1644783269611,0.007,2872.4,2871.7,0.8]
[1644783269951,0.01133685,2871.9,2871.8,0.1741796]
[1644783270162,0.01133685,2871.9,2871.7,0.84665]
[1644783270753,1.7488,2872.4,2871.7,0.84665]
[1644783270955,0.01133685,2871.9,2871.7,0.84665]
[1644783271152,0.01133685,2871.9,2871.8,0.1741796]
[1644783272051,1.74193,2872.2,2871.8,0.1741796]
[1644783272253,0.01133678,2872.0,2871.9,0.0870889]
[1644783272658,0.01133678,2872.0,2871.9,0.3870889]
[1644783273054,0.01133678,2872.0,2871.9,0.3]
[1644783273254,0.87092,2872.1,2871.9,0.8]
[1644783273455,0.88225665,2872.1,2871.9,0.8]
[1644783274406,0.87092,2872.1,2871.9,0.8]
[1644783274606,0.88225658,2872.1,2871.9,0.8]
[1644783275409,0.88225658,2872.1,2871.9,0.8870891]
[1644783275606,0.87092,2872.1,2871.9,0.8870891]
[1644783275907,0.88225658,2872.1,2871.9,0.8870891]
[1644783276811,0.87092,2872.1,2871.9,0.8870891]
[1644783277005,0.88225658,2872.1,2871.9,0.8870891]
[1644783277958,0.87092,2872.1,2871.9,0.8870891]
[1644783278155,0.88225658,2872.1,2871.9,0.8870891]
[1644783279156,0.87092,2872.1,2871.9,0.8870891]
[1644783279356,0.88225658,2872.1,2871.9,0.8870891]
[1644783280358,0.87092,2872.1,2871.9,0.8870891]
[1644783280561,0.88225658,2872.1,2871.9,0.8870891]
[1644783281602,0.87092,2872.1,2871.9,0.8870891]
[1644783281804,0.88225658,2872.1,2871.9,0.8870891]
[1644783282604,0.88225658,2872.1,2871.9,0.5870891]
[1644783282805,0.87092,2872.1,2872.0,0.3]
[1644783283008,0.88225658,2872.1,2872.0,0.3]
[1644783284005,0.88225658,2872.1,2871.6,3.3e-06]
[1644783284006,0.87092,2872.1,2871.6,3.3e-06]
[1644783284207,0.87118,2871.9,2871.6,3.3e-06]
[1644783284407,0.1741,2871.8,2871.6,3.3e-06]
[1644783284607,0.6761,2871.8,2871.6,3.3e-06]
[1644783284807,0.6761,2871.8,2871.7,0.49894929]
[1644783285054,3.97510591,2871.8,2871.7,0.49894929]
[1644783285253,5.71762591,2871.8,2871.7,0.49894929]
[1644783285553,2.41862,2871.8,2871.7,0.49894929]
[1644783285756,3.41862,2871.8,2871.7,0.49894929]
[1644783285954,2.41862,2871.8,2871.7,0.49894929]
[1644783286152,5.69641605,2871.8,2871.7,0.49894929]
[1644783286354,6.74291836,2871.8,2871.7,0.49894929]
[1644783286553,3.41862,2871.8,2871.7,0.49894929]
[1644783286753,3.41862,2871.8,2871.7,0.79894929]
[1644783286754,2.41862,2871.8,2871.7,0.79894929]
[1644783287553,1.54735,2871.8,2871.7,0.79894929]
[1644783290301,1.37325,2871.8,2871.7,0.79894929]
[1644783290502,3.7651406,2871.8,2871.7,0.79894929]
[1644783290702,1.502,2871.8,2871.7,0.79894929]
[1644783290906,0.502,2871.8,2871.7,0.79894929]
[1644783291102,1.502,2871.8,2871.7,0.79894929]
[1644783291302,4.78434265,2871.8,2871.7,0.79894929]
[1644783291904,1.502,2871.8,2871.7,0.79894929]
[1644783293354,0.502,2871.8,2871.7,0.79894929]
[1644783306529,0.502,2871.8,2871.7,0.79894929]
[1644783306725,14.72520256,2872.0,2871.7,0.79894929]
[1644783307125,0.01133692,2871.9,2871.7,0.79894929]
[1644783307325,14.72520256,2872.0,2871.7,0.79894929]
[1644783307326,12.96791276,2872.0,2871.7,0.79894929]
[1644783307575,0.04534088,2872.3,2871.8,2.1580833]
[1644783307870,0.04534088,2872.3,2871.8,2.4580833]
[1644783308071,0.007,2872.4,2871.8,3.4580833]
[1644783308271,0.007,2872.4,2871.8,2.4580833]
[1644783308677,0.007,2872.4,2871.8,3.3287533]
[1644783308872,0.007,2872.4,2872.0,0.2612156]
[1644783309073,0.007,2872.4,2872.1,0.1739]
[1644783309271,0.007,2872.4,2872.2,1.81666823]
[1644783309470,0.007,2872.4,2872.2,2.6366187]
[1644783309471,0.01095375,2872.3,2872.2,2.6366187]
[1644783309670,0.01095375,2872.3,2872.2,3.4350187]
[1644783310471,0.007,2872.4,2872.2,3.4350187]
[1644783310670,0.01795369,2872.4,2872.2,3.4350187]
[1644783310973,0.01795369,2872.4,2872.2,2.6366187]
[1644783311236,0.51995369,2872.4,2872.2,3.1350187]
[1644783311426,0.51995369,2872.4,2872.2,3.13092745]
[1644783311624,0.509,2872.4,2872.2,3.13092745]
[1644783311820,0.51995363,2872.4,2872.2,3.13092745]
[1644783312422,0.51995363,2872.4,2872.2,3.1302187]
[1644783312626,0.51995363,2872.4,2872.2,1.6299187]
[1644783312627,1.39080363,2872.4,2872.2,1.6299187]
[1644783312825,1.39080363,2872.4,2872.2,0.4799187]
[1644783312826,0.1739,2872.3,2872.2,0.4799187]
[1644783313027,4.65,2872.2,2872.1,0.5]
[1644783313225,0.3,2872.1,2872.0,0.5]
[1644783313424,1.802,2872.1,2872.0,0.5]
[1644783313624,3.62347957,2872.1,2872.0,0.5]
[1644783313826,4.49479957,2872.1,2872.0,0.5]
[1644783314427,4.66869957,2872.1,2872.0,0.5]
[1644783315270,4.66869957,2872.1,2872.0,0.8]
[1644783317670,4.66869957,2872.1,2871.6,3.3e-06]
[1644783317671,29.09855,2872.1,2871.6,3.3e-06]
[1644783317872,1.91687,2872.0,2871.6,3.3e-06]
[1644783318071,26.659,2871.8,2871.7,0.3126]
[1644783318271,26.659,2871.8,2870.9,0.01080595]
[1644783318272,20.5541,2871.7,2870.9,0.01080595]
[1644783318471,6.279,2871.4,2870.9,0.01080595]
[1644783318733,0.6761,2871.3,2870.9,0.01080595]
[1644783318924,1.94164775,2871.2,2870.4,0.0871486]
[1644783319226,1.54756,2871.1,2870.9,0.01080361]
[1644783319426,5.03343,2871.1,2870.9,0.01080361]
[1644783319625,0.3,2871.0,2870.9,0.01080361]
[1644783319924,0.802,2871.0,2870.2,0.00263758]
[1644783320125,0.8716,2870.8,2870.2,0.00263758]
[1644783320325,1.37359,2870.7,2870.3,0.0871516]
[1644783321331,2.24514,2870.7,2870.3,0.0871516]
[1644783321531,2.24514,2870.7,2870.4,0.01080314]
[1644783321728,3.24514,2870.7,2870.4,0.01080314]
[1644783322128,1.74302,2870.6,2870.4,0.51080314]
[1644783322328,0.502,2870.5,2870.4,0.50263758]
[1644783322573,0.502,2870.5,2870.4,0.5]
[1644783322769,0.502,2870.5,2870.4,0.51080309]
[1644783323168,0.502,2870.5,2870.4,0.81080309]
[1644783323569,0.502,2870.5,2870.4,0.8]
[1644783326920,0.502,2870.5,2870.3,4.053e-05]
[1644783327123,4.65,2870.3,2869.7,0.00263758]
[1644783327322,1.502,2870.2,2869.7,0.00263758]
[1644783327518,0.9834628,2870.0,2869.7,0.00263758]
[1644783327719,0.502,2869.9,2869.8,0.5]
[1644783328320,1.502,2869.9,2869.8,0.5]
[1644783328723,0.502,2869.9,2869.8,0.5]
[1644783328923,1.502,2869.9,2869.8,0.8]
[1644783329526,1.502,2869.9,2869.8,0.75]
[1644783331170,0.502,2869.9,2869.8,0.75]
[1644783331372,2.61571,2870.0,2869.8,0.75]
[1644783331373,1.7438,2870.0,2869.8,0.75]
[1644783331573,0.87192,2870.0,2869.8,0.75]
[1644783331872,0.87153,2870.2,2869.9,0.3]
[1644783332071,0.87153,2870.2,2869.9,0.30263758]
[1644783332273,0.87153,2870.2,2869.9,1.27882158]
[1644783332472,0.87153,2870.2,2870.0,0.4496]
[1644783332673,0.87153,2870.2,2869.9,1.27882158]
[1644783332674,0.25,2870.9,2870.1,0.3]
[1644783332873,1.91718,2871.0,2870.2,0.00263758]
[1644783332874,0.8714,2870.6,2870.2,0.00263758]
[1644783333272,1.74272,2871.0,2870.2,0.00263758]
[1644783333475,1.74272,2871.0,2870.4,0.4496]
[1644783333737,5.57154,2871.5,2871.3,0.4496]
[1644783333924,1.04534,2871.5,2871.3,0.4496]
[1644783334124,1.74248,2871.4,2871.3,0.4496]
[1644783335625,1.74248,2871.4,2871.3,0.3996]
[1644783337671,2.61377,2871.5,2871.3,0.3996]
[1644783337876,0.88257153,2871.6,2871.3,0.3996]
[1644783338070,0.25,2871.9,2871.4,0.3992]
[1644783338269,0.01134166,2871.6,2871.5,0.87091]
[1644783338869,0.01134166,2871.6,2871.5,1.83279479]
[1644783339268,0.8709,2872.3,2871.5,1.83279479]
[1644783339471,0.8709,2872.3,2871.7,0.0870918]
[1644783339672,0.04535873,2872.2,2871.7,0.0870918]
[1644783339870,0.04535873,2872.2,2872.0,0.3992]
[1644783340583,0.007,2872.4,2872.0,0.3992]
[1644783340771,0.01134083,2872.2,2872.0,0.4862846]
[1644783341620,0.007,2872.4,2872.0,0.4862846]
[1644783341820,0.88228083,2872.2,2872.0,0.4862846]
[1644783342020,0.01134083,2872.2,2872.0,0.4862846]
[1644783342821,0.007,2872.4,2872.0,0.4862846]
[1644783343121,0.87084,2872.3,2872.0,0.4862846]
[1644783343720,0.87084,2872.3,2872.0,0.0870846]
[1644783343922,0.87084,2872.3,2872.1,0.3992]
[1644783344122,0.87084,2872.3,2871.8,0.0871004]
[1644783344321,0.87084,2872.3,2872.1,0.3992]
[1644783344526,1.74179,2872.3,2871.8,0.0871004]
[1644783344721,1.74179,2872.3,2871.6,0.1739]
[1644783344722,1.91569,2872.3,2871.6,0.1739]
[1644783344967,0.87102,2872.1,2871.6,0.1739]
[1644783345569,0.87102,2872.1,2871.7,0.087105]
[1644783345970,0.87102,2872.1,2871.7,0.1741834]
[1644783346772,0.87102,2872.1,2871.7,0.0741834]
[1644783347471,0.87102,2872.1,2871.7,0.2483676]
[1644783347872,0.87102,2872.1,2871.7,0.1612743]
[1644783348273,0.88219992,2872.3,2871.7,0.1612743]
[1644783348931,0.87086,2872.3,2871.7,0.1612743]
[1644783349122,0.88220018,2872.3,2871.7,0.1612743]
[1644783349624,0.01134018,2872.3,2871.7,0.1612743]
[1644783350026,0.007,2872.4,2871.7,0.1612743]
[1644783350231,0.1739,2872.2,2871.7,0.0741834]
[1644783350427,1.05627018,2872.3,2871.7,0.0741834]
[1644783350828,0.87087,2872.2,2871.7,0.0741834]
[1644783351126,0.01134018,2872.3,2871.7,0.0741834]
[1644783351328,0.007,2872.4,2871.7,0.0741834]
[1644783351527,0.18524005,2872.3,2871.7,0.0741834]
[1644783351929,0.87104,2872.2,2871.7,0.0741834]
[1644783352127,0.1739,2872.1,2871.9,0.5]
[1644783352327,1.9159,2872.1,2871.9,0.5]
[1644783357620,1.742,2872.1,2871.9,0.5]
[1644783358421,1.742,2872.1,2871.9,0.5871012]
[1644783359020,1.742,2872.1,2871.9,0.5]
[1644783360272,0.87099,2872.2,2871.9,0.0870978]
[1644783360474,0.87099,2872.2,2871.9,0.5870978]
[1644783360674,0.01096595,2872.3,2872.1,1.02546821]
[1644783360875,0.007,2872.4,2872.1,1.02546821]
[1644783361273,0.01057638,2872.3,2872.1,1.11254221]
[1644783361471,0.01057638,2872.3,2872.1,1.61254221]
[1644783362271,0.007,2872.4,2872.1,1.61254221]
[1644783362673,0.01057676,2872.3,2872.1,1.61254221]
[1644783363273,0.01057676,2872.3,2872.1,1.51254221]
[1644783364519,0.87784,2872.4,2872.1,1.59961621]
[1644783365019,0.01013033,2872.3,2872.1,1.59961621]
[1644783365823,0.007,2872.4,2872.2,0.3]
[1644783366220,0.01013033,2872.3,2872.2,0.3]
[1644783366920,0.01013033,2872.3,2872.1,1.59961621]
[1644783367322,0.01713027,2872.4,2872.2,0.3]
[1644783368174,0.007,2872.4,2872.2,0.3]
[1644783368674,0.01717525,2872.4,2872.2,0.3]
[1644783369074,0.01717525,2872.4,2872.1,1.59961621]
[1644783369474,0.007,2872.4,2872.1,1.59961621]
[1644783369674,0.01717525,2872.4,2872.2,0.3]
[1644783369876,0.04069489,2872.9,2872.2,5.4364]
[1644783370075,0.04069489,2872.9,2872.4,0.9575535]
[1644783370275,0.04069489,2872.9,2872.5,0.3]
[1644783370674,0.00405141,2873.1,2872.5,5.3]
[1644783370877,0.00405141,2873.1,2873.0,0.4864]
[1644783371077,0.8712,2873.2,2873.0,1.64816164]
[1644783371326,0.17795141,2873.4,2873.0,1.64816164]
[1644783371826,0.17795141,2873.4,2873.2,0.4864]
[1644783372026,0.1739,2873.4,2873.2,0.4864]
[1644783372227,0.1739,2873.6,2873.2,0.4864]
[1644783373026,0.1739,2873.6,2873.2,0.5734446]
[1644783373227,0.01083204,2873.5,2873.2,0.5734446]
[1644783373429,0.1739,2873.4,2873.2,0.5734446]
[1644783374429,0.17795141,2873.8,2873.2,0.5734446]
[1644783374629,0.01083216,2873.4,2873.2,0.5734446]
[1644783374830,1.92923017,2873.0,2872.7,4.68856539]
[1644783375071,1.9310634,2873.0,2872.8,1.50659373]
[1644783375270,1.92701199,2873.0,2872.8,1.50659373]
[1644783375769,1.9378929,2873.0,2872.8,1.50659373]
[1644783375970,1.9378929,2873.0,2872.9,3.54146778]
[1644783376273,1.9378929,2873.0,2872.9,3.84146778]
[1644783376670,1.92701199,2873.0,2872.9,3.84146778]
[1644783377470,1.92701199,2873.0,2872.8,2.24163863]
[1644783377670,1.92701199,2873.0,2872.8,3.06773863]
[1644783378927,1.92701199,2873.0,2872.8,2.06773863]
[1644783379324,1.93781889,2873.0,2872.8,2.06773863]
[1644783380126,1.92701199,2873.0,2872.8,2.06773863]
[1644783380325,1.93781889,2873.0,2872.8,2.06773863]
[1644783380926,1.93781889,2873.0,2872.8,3.06773863]
[1644783381327,1.92701199,2873.0,2872.8,3.06773863]
[1644783381528,1.93713491,2873.0,2872.8,3.06773863]
[1644783381728,1.93713491,2873.0,2872.8,3.93817863]
[1644783382328,0.04048563,2873.5,2872.9,4.65]
[1644783382587,0.17795141,2873.8,2873.4,5.0]
[1644783382588,0.00405141,2873.8,2873.4,5.0]
[1644783382782,0.00405141,2873.8,2873.4,5.3]
[1644783382980,0.00405141,2873.8,2873.7,0.4864]
[1644783383181,0.007,2874.1,2873.7,0.4864]
[1644783383383,0.007,2874.1,2873.9,0.4864]
[1644783383581,0.007,2874.1,2873.9,0.57342]
[1644783384187,0.007,2874.1,2874.0,1.08740157]
[1644783386431,0.007,2874.1,2873.9,2e-05]
[1644783386734,0.6759,2874.0,2873.5,1.4021]
[1644783386930,0.67685324,2874.0,2873.5,0.1739]
[1644783387133,0.68090465,2874.0,2873.5,0.1739]
[1644783387532,0.87056,2873.9,2873.7,0.0870499]
[1644783387731,0.1739,2873.8,2873.7,0.0870499]
[1644783390277,0.01136315,2873.9,2873.7,0.0870499]
[1644783390875,0.00095324,2874.0,2873.7,0.0870499]
[1644783390876,0.17485324,2874.0,2873.7,0.0870499]
[1644783391079,0.17890465,2874.0,2873.7,0.0870499]
[1644783391281,0.01136308,2873.9,2873.7,0.0870499]
[1644783392178,0.1739,2874.0,2873.7,0.5870499]
[1644783392379,0.01136308,2873.9,2873.7,0.9740786]
[1644783393379,0.17795141,2874.0,2873.7,0.9740786]
[1644783393580,0.01136308,2873.9,2873.7,0.9740786]
[1644783394626,0.007,2874.1,2873.7,0.9740786]
[1644783394824,0.01136308,2873.9,2873.7,0.9740786]
[1644783395827,0.01105141,2874.1,2873.7,0.9740786]
[1644783396125,0.01136308,2873.9,2873.7,0.9740786]
[1644783397029,0.01105141,2874.1,2873.7,0.9740786]
[1644783397228,0.01136308,2873.9,2873.7,0.9740786]
[1644783397675,0.502,2873.8,2873.7,0.5870499]
[1644783398875,0.452,2873.8,2873.7,0.5870499]
[1644783399176,0.18457355,2873.9,2873.7,0.8870499]
[1644783399177,0.01067355,2873.9,2873.7,0.8870499]
[1644783399377,0.007,2874.1,2873.7,0.8870499]
[1644783399776,0.01067355,2873.9,2873.7,0.8870499]
[1644783400376,0.01067355,2873.9,2873.8,0.9249938]
[1644783400576,0.87037,2874.0,2873.8,1.2249938]
[1644783400777,0.1739,2874.2,2873.8,1.3990521]
[1644783400978,0.01067348,2873.9,2873.8,1.3990521]
[1644783401227,0.00410528,2874.2,2873.9,4.65]
[1644783401495,0.00410528,2874.3,2874.0,4.06259259]
[1644783401623,0.04268751,2874.4,2874.1,0.5870096]
[1644783401824,0.02156268,2874.8,2874.2,3.72410337]
[1644783402024,0.02156268,2874.8,2874.4,5.0]
[1644783402228,0.02156268,2874.8,2874.7,1.09219843]
[1644783402229,0.0174574,2874.8,2874.7,1.09219843]
[1644783402723,0.05781547,2874.8,2874.7,0.3]
[1644783403923,0.05781547,2874.8,2874.7,1.46579572]
[1644783404527,0.05781547,2874.8,2874.7,4.94632423]
[1644783404727,0.05781547,2874.8,2874.7,1.76579572]
[1644783405176,0.05781547,2874.8,2874.7,1.46579572]
[1644783405373,0.05781547,2874.8,2874.7,4.92093848]
[1644783405374,0.00781547,2874.8,2874.7,4.92093848]
[1644783405674,0.00781547,2874.8,2874.7,1.46579572]